[Event "Titled Tuesday Blitz May 9 Early 2023"]
[White "De Souza, Cristiano Gomes"]
[Black "WindWhistler11"]
[WhiteFideId "2151758"]
[WhiteElo "2068"]
[BlackElo "2471"]
[Result "0-1"]
[Round "06"]
[TimeControl "180+2"]
[Date "2023.05.09"]
[WhiteClock "0:00:16"]
[BlackClock "0:00:10"]

1. d4 {[%clk 0:03:00]}  Nf6 {[%clk 0:02:59]} 2. c4 {[%clk 0:02:59]}  e6 {[%clk 0:03:00]} 3. Nf3 {[%clk 0:02:59]}  c5 {[%clk 0:03:00]} 4. d5 {[%clk 0:02:59]}  exd5 {[%clk 0:03:01]} 5. cxd5 {[%clk 0:02:59]}  Bd6 {[%clk 0:03:02]} 6. Nc3 {[%clk 0:02:53]}  O-O {[%clk 0:03:02]} 7. g3 {[%clk 0:02:52]}  Re8 {[%clk 0:03:02]} 8. Bg2 {[%clk 0:02:52]}  Bf8 {[%clk 0:03:02]} 9. O-O {[%clk 0:02:52]}  d6 {[%clk 0:03:02]} 10. Nd2 {[%clk 0:02:51]}  a6 {[%clk 0:03:03]} 11. a4 {[%clk 0:02:51]}  Nbd7 {[%clk 0:03:03]} 12. Nc4 {[%clk 0:02:51]}  Nb6 {[%clk 0:03:00]} 13. Na3 {[%clk 0:02:50]}  Bg4 {[%clk 0:02:56]} 14. h3 {[%clk 0:02:49]}  Bh5 {[%clk 0:02:56]} 15. f4 {[%clk 0:02:48]}  h6 {[%clk 0:02:41]} 16. g4 {[%clk 0:02:47]}  Bg6 {[%clk 0:02:30]} 17. f5 {[%clk 0:02:46]}  Bh7 {[%clk 0:02:30]} 18. e4 {[%clk 0:02:45]}  Nfd7 {[%clk 0:02:23]} 19. a5 {[%clk 0:02:41]}  Nc8 {[%clk 0:02:24]} 20. Nc4 {[%clk 0:02:40]}  Na7 {[%clk 0:02:22]} 21. Bf4 {[%clk 0:02:37]}  Ne5 {[%clk 0:02:19]} 22. Bxe5 {[%clk 0:02:36]}  dxe5 {[%clk 0:02:19]} 23. Nb6 {[%clk 0:02:35]}  Rb8 {[%clk 0:02:18]} 24. Rf2 {[%clk 0:02:32]}  Nb5 {[%clk 0:02:13]} 25. Nxb5 {[%clk 0:02:30]}  axb5 {[%clk 0:02:14]} 26. Rd2 {[%clk 0:02:26]}  c4 {[%clk 0:02:13]} 27. d6 {[%clk 0:02:21]}  g6 {[%clk 0:02:04]} 28. Rd5 {[%clk 0:02:17]}  Kh8 {[%clk 0:01:58]} 29. Qd2 {[%clk 0:02:12]}  gxf5 {[%clk 0:01:50]} 30. exf5 {[%clk 0:02:11]}  f6 {[%clk 0:01:48]} 31. Rd1 {[%clk 0:02:06]}  Bg8 {[%clk 0:01:42]} 32. Rxb5 {[%clk 0:02:04]}  e4 {[%clk 0:01:36]} 33. Qe3 {[%clk 0:02:01]}  Bxd6 {[%clk 0:01:32]} 34. Rbd5 {[%clk 0:01:59]}  Bxd5 {[%clk 0:01:31]} 35. Rxd5 {[%clk 0:01:57]}  Kh7 {[%clk 0:01:08]} 36. Nxc4 {[%clk 0:01:54]}  Bh2+ {[%clk 0:01:05]} 37. Kxh2 {[%clk 0:01:53]}  Qxd5 {[%clk 0:01:06]} 38. Nd2 {[%clk 0:01:46]}  Qd3 {[%clk 0:00:40]} 39. Nf1 {[%clk 0:01:40]}  Qxe3 {[%clk 0:00:36]} 40. Nxe3 {[%clk 0:01:38]}  Rbd8 {[%clk 0:00:36]} 41. Kg3 {[%clk 0:01:38]}  Rd2 {[%clk 0:00:33]} 42. b4 {[%clk 0:01:36]}  Rb2 {[%clk 0:00:31]} 43. Kf4 {[%clk 0:01:31]}  Rxb4 {[%clk 0:00:24]} 44. Nd5 {[%clk 0:01:31]}  e3+ {[%clk 0:00:24]} 45. Nxb4 {[%clk 0:01:27]}  e2 {[%clk 0:00:24]} 46. Nd3 {[%clk 0:01:25]}  Rd8 {[%clk 0:00:16]} 47. Ne1 {[%clk 0:01:11]}  Rd1 {[%clk 0:00:17]} 48. Nf3 {[%clk 0:01:06]}  Rd3 {[%clk 0:00:17]} 49. Ne1 {[%clk 0:01:05]}  Rd1 {[%clk 0:00:17]} 50. Nf3 {[%clk 0:01:04]}  Ra1 {[%clk 0:00:18]} 51. Kg3 {[%clk 0:00:59]}  Rxa5 {[%clk 0:00:17]} 52. Kf2 {[%clk 0:00:59]}  Ra2 {[%clk 0:00:17]} 53. Ke1 {[%clk 0:00:57]}  b5 {[%clk 0:00:17]} 54. Nd4 {[%clk 0:00:56]}  b4 {[%clk 0:00:17]} 55. Bd5 {[%clk 0:00:55]}  Ra1+ {[%clk 0:00:14]} 56. Kxe2 {[%clk 0:00:54]}  Rg1 {[%clk 0:00:14]} 57. Bb3 {[%clk 0:00:48]}  Rg3 {[%clk 0:00:13]} 58. Kd2 {[%clk 0:00:47]}  Rxh3 {[%clk 0:00:13]} 59. Kc2 {[%clk 0:00:47]}  Rg3 {[%clk 0:00:13]} 60. Be6 {[%clk 0:00:39]}  Rxg4 {[%clk 0:00:13]} 61. Nc6 {[%clk 0:00:39]}  h5 {[%clk 0:00:12]} 62. Kb3 {[%clk 0:00:35]}  h4 {[%clk 0:00:11]} 63. Nxb4 {[%clk 0:00:36]}  h3 {[%clk 0:00:11]} 64. Nd5 {[%clk 0:00:36]}  h2 {[%clk 0:00:08]} 65. Nxf6+ {[%clk 0:00:35]}  Kg7 {[%clk 0:00:09]} 66. Nxg4 {[%clk 0:00:36]}  h1=Q {[%clk 0:00:09]} 67. Ne5 {[%clk 0:00:36]}  Qb1+ {[%clk 0:00:07]} 68. Kc4 {[%clk 0:00:33]}  Qe4+ {[%clk 0:00:07]} 69. Kc5 {[%clk 0:00:31]}  Qxe5+ {[%clk 0:00:07]} 70. Kc4 {[%clk 0:00:31]}  Kf6 {[%clk 0:00:08]} 71. Kd3 {[%clk 0:00:31]}  Ke7 {[%clk 0:00:09]} 72. Kc4 {[%clk 0:00:30]}  Kd6 {[%clk 0:00:09]} 73. Kd3 {[%clk 0:00:31]}  Kc5 {[%clk 0:00:09]} 74. Kd2 {[%clk 0:00:30]}  Qd4+ {[%clk 0:00:10]} 75. Ke2 {[%clk 0:00:30]}  Kd6 {[%clk 0:00:10]} 76. Kf3 {[%clk 0:00:31]}  Ke5 {[%clk 0:00:11]} 77. Kg3 {[%clk 0:00:30]}  Qf4+ {[%clk 0:00:11]} 78. Kh3 {[%clk 0:00:31]}  Kf6 {[%clk 0:00:11]} 79. Kg2 {[%clk 0:00:28]}  Kg5 {[%clk 0:00:11]} 80. Kg1 {[%clk 0:00:23]}  Qe3+ {[%clk 0:00:09]} 81. Kg2 {[%clk 0:00:22]}  Kf4 {[%clk 0:00:10]} 82. Kh2 {[%clk 0:00:20]}  Qf2+ {[%clk 0:00:09]} 83. Kh1 {[%clk 0:00:16]}  Kg3 {[%clk 0:00:10]} 0-1


[Site "https://www.chess.com"]

[Event "Titled Tuesday Blitz May 9 Early 2023"]
[White "Barbot, Pierre"]
[Black "Martic, Ivan"]
[WhiteFideId "663727"]
[BlackFideId "929301"]
[WhiteElo "2431"]
[BlackElo "2360"]
[Result "1/2-1/2"]
[Round "06"]
[TimeControl "180+2"]
[Date "2023.05.09"]
[WhiteClock "0:00:07"]
[BlackClock "0:00:09"]

1. d4 {[%clk 0:03:00]}  d5 {[%clk 0:02:58]} 2. Nc3 {[%clk 0:02:59]}  Nf6 {[%clk 0:02:55]} 3. Bf4 {[%clk 0:02:59]}  c5 {[%clk 0:02:53]} 4. e3 {[%clk 0:02:56]}  cxd4 {[%clk 0:02:51]} 5. exd4 {[%clk 0:02:56]}  a6 {[%clk 0:02:41]} 6. Nf3 {[%clk 0:02:47]}  Bf5 {[%clk 0:02:34]} 7. Ne5 {[%clk 0:02:39]}  e6 {[%clk 0:02:34]} 8. g4 {[%clk 0:02:31]}  Be4 {[%clk 0:02:33]} 9. f3 {[%clk 0:02:31]}  Bg6 {[%clk 0:02:33]} 10. h4 {[%clk 0:02:31]}  h5 {[%clk 0:02:09]} 11. Nxg6 {[%clk 0:02:28]}  fxg6 {[%clk 0:02:10]} 12. Bd3 {[%clk 0:02:15]}  Kf7 {[%clk 0:02:09]} 13. Qd2 {[%clk 0:02:00]}  Bd6 {[%clk 0:02:03]} 14. Be5 {[%clk 0:01:55]}  Nc6 {[%clk 0:01:55]} 15. g5 {[%clk 0:01:52]}  Nxe5 {[%clk 0:01:44]} 16. dxe5 {[%clk 0:01:51]}  Bxe5 {[%clk 0:01:40]} 17. gxf6 {[%clk 0:01:46]}  Qxf6 {[%clk 0:01:38]} 18. Qg5 {[%clk 0:01:45]}  Rac8 {[%clk 0:01:04]} 19. Rg1 {[%clk 0:01:28]}  Rxc3 {[%clk 0:00:37]} 20. bxc3 {[%clk 0:01:29]}  Bxc3+ {[%clk 0:00:37]} 21. Ke2 {[%clk 0:01:12]}  Bxa1 {[%clk 0:00:38]} 22. Bxg6+ {[%clk 0:00:48]}  Kf8 {[%clk 0:00:37]} 23. Rxa1 {[%clk 0:00:43]}  Rh6 {[%clk 0:00:27]} 24. Qxf6+ {[%clk 0:00:35]}  gxf6 {[%clk 0:00:28]} 25. Bd3 {[%clk 0:00:35]}  Ke7 {[%clk 0:00:25]} 26. Rb1 {[%clk 0:00:35]}  b5 {[%clk 0:00:25]} 27. a4 {[%clk 0:00:35]}  bxa4 {[%clk 0:00:25]} 28. Rb6 {[%clk 0:00:32]}  Rh8 {[%clk 0:00:23]} 29. Rxa6 {[%clk 0:00:32]}  Rg8 {[%clk 0:00:23]} 30. Rxa4 {[%clk 0:00:26]}  Rg2+ {[%clk 0:00:22]} 31. Ke3 {[%clk 0:00:24]}  Rh2 {[%clk 0:00:23]} 32. Bg6 {[%clk 0:00:22]}  e5 {[%clk 0:00:22]} 33. Bxh5 {[%clk 0:00:20]}  d4+ {[%clk 0:00:22]} 34. Kd3 {[%clk 0:00:18]}  Rxh4 {[%clk 0:00:23]} 35. Bg4 {[%clk 0:00:17]}  Kf7 {[%clk 0:00:16]} 36. Bf5 {[%clk 0:00:14]}  Rf4 {[%clk 0:00:16]} 37. Ra7+ {[%clk 0:00:14]}  Kf8 {[%clk 0:00:15]} 38. Be4 {[%clk 0:00:13]}  f5 {[%clk 0:00:15]} 39. Bd5 {[%clk 0:00:13]}  Ke8 {[%clk 0:00:12]} 40. Rh7 {[%clk 0:00:12]}  Kf8 {[%clk 0:00:12]} 41. Rh5 {[%clk 0:00:11]}  Ke7 {[%clk 0:00:12]} 42. Rh1 {[%clk 0:00:10]}  Kd6 {[%clk 0:00:11]} 43. Ba8 {[%clk 0:00:10]}  Kc5 {[%clk 0:00:11]} 44. Rh6 {[%clk 0:00:10]}  e4+ {[%clk 0:00:06]} 45. fxe4 {[%clk 0:00:10]}  Rf3+ {[%clk 0:00:07]} 46. Ke2 {[%clk 0:00:09]}  fxe4 {[%clk 0:00:06]} 47. Bxe4 {[%clk 0:00:09]}  Re3+ {[%clk 0:00:06]} 48. Kd2 {[%clk 0:00:06]}  Rxe4 {[%clk 0:00:07]} 49. Kd3 {[%clk 0:00:06]}  Re3+ {[%clk 0:00:07]} 50. Kd2 {[%clk 0:00:06]}  Rg3 {[%clk 0:00:07]} 51. Rh8 {[%clk 0:00:04]}  Rg2+ {[%clk 0:00:07]} 52. Kd3 {[%clk 0:00:04]}  Rg3+ {[%clk 0:00:08]} 53. Kd2 {[%clk 0:00:05]}  Kc4 {[%clk 0:00:07]} 54. Rc8+ {[%clk 0:00:05]}  Kd5 {[%clk 0:00:08]} 55. Rd8+ {[%clk 0:00:05]}  Ke4 {[%clk 0:00:08]} 56. Re8+ {[%clk 0:00:06]}  Kd5 {[%clk 0:00:09]} 57. Rd8+ {[%clk 0:00:06]}  Kc4 {[%clk 0:00:09]} 58. Rc8+ {[%clk 0:00:07]}  Kd5 {[%clk 0:00:09]} 59. Rd8+ {[%clk 0:00:07]} 1/2-1/2


[Site "https://www.chess.com"]

[Event "Titled Tuesday Blitz May 9 Early 2023"]
[White "Redzisz, Michal"]
[Black "Bueno, Alfeu Junior Varela"]
[WhiteFideId "21816107"]
[BlackFideId "2108879"]
[WhiteElo "2175"]
[BlackElo "2175"]
[Result "1-0"]
[Round "06"]
[TimeControl "180+2"]
[Date "2023.05.09"]
[WhiteClock "0:00:14"]
[BlackClock "0:00:08"]

1. e4 {[%clk 0:03:00]}  e6 {[%clk 0:03:00]} 2. d4 {[%clk 0:02:52]}  d5 {[%clk 0:03:00]} 3. Bd3 {[%clk 0:02:52]}  Nf6 {[%clk 0:02:58]} 4. e5 {[%clk 0:02:50]}  Nfd7 {[%clk 0:02:59]} 5. Nd2 {[%clk 0:02:51]}  c5 {[%clk 0:02:59]} 6. c3 {[%clk 0:02:51]}  Nc6 {[%clk 0:02:59]} 7. Ngf3 {[%clk 0:02:52]}  cxd4 {[%clk 0:02:58]} 8. cxd4 {[%clk 0:02:51]}  f6 {[%clk 0:02:58]} 9. exf6 {[%clk 0:02:50]}  Nxf6 {[%clk 0:02:59]} 10. O-O {[%clk 0:02:49]}  Bd6 {[%clk 0:03:00]} 11. Re1 {[%clk 0:02:38]}  O-O {[%clk 0:03:00]} 12. Nf1 {[%clk 0:02:34]}  Qc7 {[%clk 0:02:44]} 13. Bg5 {[%clk 0:02:19]}  Nh5 {[%clk 0:02:32]} 14. Ne5 {[%clk 0:01:59]}  Nf4 {[%clk 0:02:13]} 15. Bxf4 {[%clk 0:01:38]}  Rxf4 {[%clk 0:02:14]} 16. Rc1 {[%clk 0:00:54]}  Bxe5 {[%clk 0:01:50]} 17. Rxe5 {[%clk 0:00:53]}  Qf7 {[%clk 0:01:43]} 18. Re1 {[%clk 0:00:30]}  Rxf2 {[%clk 0:01:16]} 19. Ng3 {[%clk 0:00:27]}  Bd7 {[%clk 0:01:08]} 20. Qg4 {[%clk 0:00:20]}  e5 {[%clk 0:00:48]} 21. Qh4 {[%clk 0:00:20]}  e4 {[%clk 0:00:48]} 22. Nxe4 {[%clk 0:00:21]}  dxe4 {[%clk 0:00:34]} 23. Bc4 {[%clk 0:00:21]}  Rxg2+ {[%clk 0:00:26]} 24. Kxg2 {[%clk 0:00:20]}  Be6 {[%clk 0:00:27]} 25. Bxe6 {[%clk 0:00:15]}  Qxe6 {[%clk 0:00:28]} 26. Qxe4 {[%clk 0:00:16]}  Qxa2 {[%clk 0:00:24]} 27. d5 {[%clk 0:00:14]}  Na5 {[%clk 0:00:08]} 28. Qe6+ {[%clk 0:00:14]} 1-0


[Site "https://www.chess.com"]

[Event "Titled Tuesday Blitz May 9 Early 2023"]
[White "Mackster23"]
[Black "Delorme, Alban"]
[BlackFideId "623636"]
[WhiteElo "2436"]
[BlackElo "2196"]
[Result "1-0"]
[Round "06"]
[TimeControl "180+2"]
[Date "2023.05.09"]
[WhiteClock "0:00:22"]
[BlackClock "0:00:00"]

1. e4 {[%clk 0:03:00]}  c5 {[%clk 0:02:33]} 2. Nf3 {[%clk 0:02:57]}  Nc6 {[%clk 0:02:33]} 3. d4 {[%clk 0:02:55]}  cxd4 {[%clk 0:02:34]} 4. Nxd4 {[%clk 0:02:55]}  Nf6 {[%clk 0:02:34]} 5. Nc3 {[%clk 0:02:55]}  d6 {[%clk 0:02:35]} 6. Bg5 {[%clk 0:02:55]}  Bd7 {[%clk 0:02:35]} 7. Bxf6 {[%clk 0:02:41]}  gxf6 {[%clk 0:02:35]} 8. Bc4 {[%clk 0:02:37]}  Qb6 {[%clk 0:02:18]} 9. Ndb5 {[%clk 0:01:54]}  a6 {[%clk 0:02:04]} 10. Nd5 {[%clk 0:01:53]}  Qa5+ {[%clk 0:02:03]} 11. b4 {[%clk 0:01:51]}  Nxb4 {[%clk 0:02:02]} 12. Nbc7+ {[%clk 0:01:51]}  Kd8 {[%clk 0:01:58]} 13. Qd2 {[%clk 0:01:50]}  Rc8 {[%clk 0:01:38]} 14. Nxb4 {[%clk 0:01:25]}  Qxc7 {[%clk 0:01:29]} 15. Bxf7 {[%clk 0:01:22]}  a5 {[%clk 0:01:20]} 16. Nd5 {[%clk 0:01:19]}  Qxc2 {[%clk 0:01:20]} 17. Qxa5+ {[%clk 0:01:17]}  Rc7 {[%clk 0:01:14]} 18. O-O {[%clk 0:01:00]}  Bh6 {[%clk 0:01:08]} 19. Qxc7+ {[%clk 0:00:43]}  Qxc7 {[%clk 0:01:07]} 20. Nxc7 {[%clk 0:00:44]}  Kxc7 {[%clk 0:01:08]} 21. Bb3 {[%clk 0:00:39]}  Rg8 {[%clk 0:00:00]} 22. Bxg8 {[%clk 0:00:22]} 1-0


[Site "https://www.chess.com"]

[Event "Titled Tuesday Blitz May 9 Early 2023"]
[White "Jimenez Almeida, Luis David"]
[Black "Levitan, Caleb Levi"]
[WhiteFideId "22242244"]
[BlackFideId "14332620"]
[WhiteElo "2245"]
[BlackElo "1963"]
[Result "1-0"]
[Round "06"]
[TimeControl "180+2"]
[Date "2023.05.09"]
[WhiteClock "0:00:26"]
[BlackClock "0:00:00"]

1. e4 {[%clk 0:03:00]}  e5 {[%clk 0:02:55]} 2. Nf3 {[%clk 0:02:59]}  Nc6 {[%clk 0:02:55]} 3. Bb5 {[%clk 0:02:59]}  a6 {[%clk 0:02:54]} 4. Ba4 {[%clk 0:02:58]}  Nf6 {[%clk 0:02:54]} 5. O-O {[%clk 0:02:58]}  Bc5 {[%clk 0:02:53]} 6. d3 {[%clk 0:02:58]}  b5 {[%clk 0:02:50]} 7. Bb3 {[%clk 0:02:57]}  d6 {[%clk 0:02:49]} 8. h3 {[%clk 0:02:55]}  O-O {[%clk 0:02:48]} 9. c3 {[%clk 0:02:55]}  Bb6 {[%clk 0:02:47]} 10. a4 {[%clk 0:02:53]}  Bb7 {[%clk 0:02:46]} 11. Nbd2 {[%clk 0:02:51]}  Qe7 {[%clk 0:02:38]} 12. Re1 {[%clk 0:02:49]}  h6 {[%clk 0:02:33]} 13. Nf1 {[%clk 0:02:49]}  Na5 {[%clk 0:02:12]} 14. Bc2 {[%clk 0:02:47]}  c5 {[%clk 0:02:12]} 15. Ng3 {[%clk 0:02:41]}  c4 {[%clk 0:01:58]} 16. Be3 {[%clk 0:02:28]}  Bxe3 {[%clk 0:01:53]} 17. Rxe3 {[%clk 0:02:29]}  cxd3 {[%clk 0:01:53]} 18. Bxd3 {[%clk 0:02:28]}  bxa4 {[%clk 0:01:15]} 19. Rxa4 {[%clk 0:02:22]}  Nc6 {[%clk 0:01:13]} 20. Nf5 {[%clk 0:02:20]}  Qd7 {[%clk 0:01:07]} 21. N3h4 {[%clk 0:02:20]}  Ne7 {[%clk 0:01:01]} 22. Nxe7+ {[%clk 0:02:06]}  Qxe7 {[%clk 0:00:59]} 23. Rg3 {[%clk 0:02:06]}  Qd7 {[%clk 0:00:37]} 24. Nf5 {[%clk 0:02:03]}  Ne8 {[%clk 0:00:37]} 25. Nxh6+ {[%clk 0:02:00]}  Kh7 {[%clk 0:00:33]} 26. Nf5 {[%clk 0:01:54]}  g6 {[%clk 0:00:29]} 27. Qg4 {[%clk 0:01:52]}  Nf6 {[%clk 0:00:24]} 28. Qh4+ {[%clk 0:01:50]}  Nh5 {[%clk 0:00:24]} 29. Rg5 {[%clk 0:01:48]}  f6 {[%clk 0:00:13]} 30. Rxg6 {[%clk 0:01:37]}  Kxg6 {[%clk 0:00:11]} 31. Qg4+ {[%clk 0:01:37]}  Kh7 {[%clk 0:00:11]} 32. Qxh5+ {[%clk 0:01:37]}  Kg8 {[%clk 0:00:11]} 33. Bc4+ {[%clk 0:01:25]}  d5 {[%clk 0:00:12]} 34. Bxd5+ {[%clk 0:01:23]}  Bxd5 {[%clk 0:00:12]} 35. exd5 {[%clk 0:01:23]}  Qh7 {[%clk 0:00:08]} 36. Nh6+ {[%clk 0:01:07]}  Kh8 {[%clk 0:00:08]} 37. Rh4 {[%clk 0:01:07]}  Ra7 {[%clk 0:00:07]} 38. Kh2 {[%clk 0:00:57]}  Rg7 {[%clk 0:00:05]} 39. g3 {[%clk 0:00:36]}  Rg5 {[%clk 0:00:02]} 40. Nf7+ {[%clk 0:00:32]}  Rxf7 {[%clk 0:00:02]} 41. Qxf7 {[%clk 0:00:32]}  Rg7 {[%clk 0:00:01]} 42. Rxh7+ {[%clk 0:00:31]}  Kxh7 {[%clk 0:00:00]} 43. Qxf6 {[%clk 0:00:26]} 1-0


[Site "https://www.chess.com"]

[Event "Titled Tuesday Blitz May 9 Early 2023"]
[White "Garakov, Mikhael"]
[Black "Kuchava, Ana"]
[WhiteFideId "4169034"]
[BlackFideId "13605348"]
[WhiteElo "2347"]
[BlackElo "2001"]
[Result "1-0"]
[Round "06"]
[TimeControl "180+2"]
[Date "2023.05.09"]
[WhiteClock "0:00:13"]
[BlackClock "0:00:01"]

1. e4 {[%clk 0:03:00]}  c5 {[%clk 0:02:56]} 2. Nf3 {[%clk 0:02:57]}  d6 {[%clk 0:02:54]} 3. d4 {[%clk 0:02:56]}  cxd4 {[%clk 0:02:49]} 4. Nxd4 {[%clk 0:02:57]}  Nf6 {[%clk 0:02:43]} 5. Nc3 {[%clk 0:02:55]}  Nc6 {[%clk 0:02:39]} 6. Bc4 {[%clk 0:02:54]}  e6 {[%clk 0:02:35]} 7. Be3 {[%clk 0:02:51]}  a6 {[%clk 0:02:32]} 8. Qe2 {[%clk 0:02:49]}  Qc7 {[%clk 0:02:27]} 9. Bb3 {[%clk 0:02:47]}  Na5 {[%clk 0:02:18]} 10. g4 {[%clk 0:02:41]}  Nxb3 {[%clk 0:01:57]} 11. axb3 {[%clk 0:02:40]}  Be7 {[%clk 0:01:43]} 12. g5 {[%clk 0:01:57]}  Nd7 {[%clk 0:01:40]} 13. h4 {[%clk 0:01:56]}  Rb8 {[%clk 0:01:24]} 14. O-O-O {[%clk 0:01:16]}  b5 {[%clk 0:01:15]} 15. h5 {[%clk 0:01:16]}  b4 {[%clk 0:01:14]} 16. Na4 {[%clk 0:01:15]}  Nc5 {[%clk 0:01:12]} 17. g6 {[%clk 0:01:11]}  fxg6 {[%clk 0:01:05]} 18. hxg6 {[%clk 0:01:10]}  h6 {[%clk 0:01:03]} 19. Bxh6 {[%clk 0:00:26]}  Rxh6 {[%clk 0:00:42]} 20. Rxh6 {[%clk 0:00:24]}  Bg5+ {[%clk 0:00:42]} 21. f4 {[%clk 0:00:18]}  Bxf4+ {[%clk 0:00:30]} 22. Kb1 {[%clk 0:00:18]}  Bxh6 {[%clk 0:00:29]} 23. Rf1 {[%clk 0:00:19]}  e5 {[%clk 0:00:14]} 24. Rf7 {[%clk 0:00:15]}  Bd7 {[%clk 0:00:11]} 25. Nf5 {[%clk 0:00:15]}  Bxf5 {[%clk 0:00:10]} 26. Rxc7 {[%clk 0:00:14]}  Bxg6 {[%clk 0:00:08]} 27. Nxc5 {[%clk 0:00:13]}  dxc5 {[%clk 0:00:07]} 28. Qc4 {[%clk 0:00:14]}  Rd8 {[%clk 0:00:05]} 29. Qe6+ {[%clk 0:00:13]}  Kf8 {[%clk 0:00:01]} 30. Qe7+ {[%clk 0:00:13]} 1-0


[Site "https://www.chess.com"]

[Event "Titled Tuesday Blitz May 9 Early 2023"]
[White "Srdanovic, Jovana"]
[Black "Mouhamad, Joachim"]
[WhiteFideId "954810"]
[BlackFideId "656410"]
[WhiteElo "2169"]
[BlackElo "2125"]
[Result "1/2-1/2"]
[Round "06"]
[TimeControl "180+2"]
[Date "2023.05.09"]
[WhiteClock "0:01:47"]
[BlackClock "0:01:07"]

1. d4 {[%clk 0:03:00]}  d5 {[%clk 0:02:49]} 2. c4 {[%clk 0:03:00]}  e6 {[%clk 0:02:46]} 3. Nf3 {[%clk 0:03:00]}  a6 {[%clk 0:02:46]} 4. cxd5 {[%clk 0:02:58]}  exd5 {[%clk 0:02:46]} 5. Nc3 {[%clk 0:02:58]}  Nf6 {[%clk 0:02:46]} 6. Bg5 {[%clk 0:02:59]}  Be6 {[%clk 0:02:44]} 7. Bxf6 {[%clk 0:02:41]}  Qxf6 {[%clk 0:02:41]} 8. Qb3 {[%clk 0:02:41]}  Ra7 {[%clk 0:02:35]} 9. e3 {[%clk 0:02:04]}  Qd8 {[%clk 0:02:30]} 10. Bd3 {[%clk 0:02:02]}  c6 {[%clk 0:02:18]} 11. O-O {[%clk 0:02:02]}  Nd7 {[%clk 0:02:12]} 12. Rad1 {[%clk 0:02:03]}  Be7 {[%clk 0:02:10]} 13. Rfe1 {[%clk 0:02:03]}  O-O {[%clk 0:02:09]} 14. Qc2 {[%clk 0:02:03]}  g6 {[%clk 0:02:03]} 15. a3 {[%clk 0:01:57]}  Ra8 {[%clk 0:01:53]} 16. b4 {[%clk 0:01:56]}  Nf6 {[%clk 0:01:42]} 17. Na4 {[%clk 0:01:55]}  Ne8 {[%clk 0:01:40]} 18. Nc5 {[%clk 0:01:55]}  Nd6 {[%clk 0:01:30]} 19. Nxe6 {[%clk 0:01:53]}  fxe6 {[%clk 0:01:30]} 20. Bxg6 {[%clk 0:01:47]}  hxg6 {[%clk 0:01:06]} 21. Qxg6+ {[%clk 0:01:47]}  Kh8 {[%clk 0:01:06]} 22. Qh6+ {[%clk 0:01:47]}  Kg8 {[%clk 0:01:07]} 23. Qg6+ {[%clk 0:01:46]}  Kh8 {[%clk 0:01:06]} 24. Qh6+ {[%clk 0:01:46]}  Kg8 {[%clk 0:01:07]} 25. Qg6+ {[%clk 0:01:47]} 1/2-1/2


[Site "https://www.chess.com"]

[Event "Titled Tuesday Blitz May 9 Early 2023"]
[White "Rios Escobar, Adan"]
[Black "Yonal, Timur"]
[WhiteFideId "3403645"]
[BlackFideId "44115725"]
[WhiteElo "2422"]
[BlackElo "1966"]
[Result "0-1"]
[Round "06"]
[TimeControl "180+2"]
[Date "2023.05.09"]
[WhiteClock "0:00:03"]
[BlackClock "0:00:13"]

1. d4 {[%clk 0:02:49]}  d5 {[%clk 0:02:59]} 2. g3 {[%clk 0:02:49]}  Nf6 {[%clk 0:02:55]} 3. Nf3 {[%clk 0:02:46]}  g6 {[%clk 0:02:53]} 4. Bg2 {[%clk 0:02:44]}  Bg7 {[%clk 0:02:53]} 5. c4 {[%clk 0:02:45]}  c6 {[%clk 0:02:51]} 6. cxd5 {[%clk 0:02:45]}  cxd5 {[%clk 0:02:51]} 7. Nc3 {[%clk 0:02:46]}  Nc6 {[%clk 0:02:51]} 8. Ne5 {[%clk 0:02:43]}  O-O {[%clk 0:02:50]} 9. O-O {[%clk 0:02:42]}  Bf5 {[%clk 0:02:47]} 10. Bf4 {[%clk 0:02:30]}  Ne4 {[%clk 0:02:28]} 11. Nxc6 {[%clk 0:02:26]}  bxc6 {[%clk 0:02:21]} 12. Na4 {[%clk 0:02:26]}  Qa5 {[%clk 0:02:14]} 13. Rc1 {[%clk 0:02:23]}  Rfc8 {[%clk 0:01:56]} 14. a3 {[%clk 0:02:22]}  h6 {[%clk 0:01:34]} 15. Nc5 {[%clk 0:02:21]}  Nxc5 {[%clk 0:01:24]} 16. Rxc5 {[%clk 0:02:22]}  Qb6 {[%clk 0:01:25]} 17. Qc1 {[%clk 0:02:18]}  g5 {[%clk 0:01:17]} 18. Be3 {[%clk 0:02:16]}  Rab8 {[%clk 0:01:11]} 19. b4 {[%clk 0:02:14]}  Qb7 {[%clk 0:01:03]} 20. Qd2 {[%clk 0:02:10]}  e6 {[%clk 0:00:56]} 21. Rfc1 {[%clk 0:02:07]}  Bf8 {[%clk 0:00:48]} 22. h4 {[%clk 0:01:56]}  f6 {[%clk 0:00:45]} 23. R5c3 {[%clk 0:01:45]}  Kg7 {[%clk 0:00:32]} 24. Bf3 {[%clk 0:01:38]}  Be7 {[%clk 0:00:30]} 25. Bh5 {[%clk 0:01:26]}  Ra8 {[%clk 0:00:22]} 26. Qb2 {[%clk 0:00:27]}  a5 {[%clk 0:00:20]} 27. b5 {[%clk 0:00:27]}  cxb5 {[%clk 0:00:21]} 28. Rxc8 {[%clk 0:00:27]}  Rxc8 {[%clk 0:00:22]} 29. Rxc8 {[%clk 0:00:27]}  Qxc8 {[%clk 0:00:22]} 30. Qxb5 {[%clk 0:00:27]}  Qc2 {[%clk 0:00:22]} 31. Qe8 {[%clk 0:00:22]}  Qc7 {[%clk 0:00:17]} 32. Qf7+ {[%clk 0:00:21]}  Kh8 {[%clk 0:00:17]} 33. hxg5 {[%clk 0:00:20]}  hxg5 {[%clk 0:00:14]} 34. Kg2 {[%clk 0:00:20]}  Be4+ {[%clk 0:00:12]} 35. f3 {[%clk 0:00:20]}  Bh7 {[%clk 0:00:12]} 36. Qxe6 {[%clk 0:00:19]}  Bd8 {[%clk 0:00:09]} 37. Qxd5 {[%clk 0:00:18]}  Qe7 {[%clk 0:00:08]} 38. Qc5 {[%clk 0:00:17]}  Qxe3 {[%clk 0:00:05]} 39. Qf8+ {[%clk 0:00:16]}  Bg8 {[%clk 0:00:04]} 40. Bf7 {[%clk 0:00:12]}  Qxe2+ {[%clk 0:00:04]} 41. Kh3 {[%clk 0:00:13]}  Qf1+ {[%clk 0:00:04]} 42. Kg4 {[%clk 0:00:12]}  f5+ {[%clk 0:00:03]} 43. Kh5 {[%clk 0:00:09]}  Qxf3+ {[%clk 0:00:04]} 44. Kg6 {[%clk 0:00:10]}  Qc6+ {[%clk 0:00:02]} 45. Kxf5 {[%clk 0:00:10]}  Qf3+ {[%clk 0:00:02]} 46. Kg6 {[%clk 0:00:10]}  Qxf7+ {[%clk 0:00:03]} 47. Qxf7 {[%clk 0:00:10]}  Bxf7+ {[%clk 0:00:03]} 48. Kxf7 {[%clk 0:00:11]}  Bc7 {[%clk 0:00:04]} 49. g4 {[%clk 0:00:10]}  Bd6 {[%clk 0:00:04]} 50. a4 {[%clk 0:00:10]}  Ba3 {[%clk 0:00:05]} 51. d5 {[%clk 0:00:10]}  Bc5 {[%clk 0:00:05]} 52. Kf6 {[%clk 0:00:11]}  Kg8 {[%clk 0:00:06]} 53. Kxg5 {[%clk 0:00:11]}  Kf7 {[%clk 0:00:07]} 54. Kf5 {[%clk 0:00:11]}  Ke7 {[%clk 0:00:07]} 55. g5 {[%clk 0:00:12]}  Kd6 {[%clk 0:00:08]} 56. g6 {[%clk 0:00:11]}  Bd4 {[%clk 0:00:09]} 57. Ke4 {[%clk 0:00:10]}  Bg7 {[%clk 0:00:09]} 58. Kf5 {[%clk 0:00:01]}  Kxd5 {[%clk 0:00:10]} 59. Kg5 {[%clk 0:00:02]}  Kc5 {[%clk 0:00:11]} 60. Kf5 {[%clk 0:00:02]}  Kb4 {[%clk 0:00:12]} 61. Ke6 {[%clk 0:00:03]}  Kxa4 {[%clk 0:00:12]} 62. Kf7 {[%clk 0:00:04]}  Bc3 {[%clk 0:00:13]} 63. Ke6 {[%clk 0:00:04]}  Kb3 {[%clk 0:00:13]} 64. Kd5 {[%clk 0:00:04]}  a4 {[%clk 0:00:13]} 65. Ke4 {[%clk 0:00:04]}  a3 {[%clk 0:00:13]} 66. Kd3 {[%clk 0:00:04]}  a2 {[%clk 0:00:13]} 67. g7 {[%clk 0:00:03]}  Bxg7 {[%clk 0:00:13]} 0-1


[Site "https://www.chess.com"]